Workbook

Sheet Introduction
D2: Nationally Appropriate Mitigation Action (NAMA) Sustainable Development Evaluation Tool
C3: Date | D3: 2015-04-27
C4: Version | D4: 2
B8: Introduction
B10: This tool has been designed for NAMA developers and policy makers.
B11: This tool has been designed to evaluate the Sustainable Development performance indicators for NAMAs and to evaluate the Sustainable Development results achieved over the lifetime of the NAMA.
B12: The tool should allow policy makers to track and highlight the effects of a NAMA on environmental conservation, economic growth, poverty reduction and public welfare.
B15: Origin of 4 Domains and indicators
B16: Domains
B17: Different domains are identified for sustainable development. International organizations broadly use the three famous pillars: environment, social and economic for classification of Sustainable Development benefits. However, couple of indicators always have a dual effect on either of these pillars ( For example women empowerment will have effect both on social and economic domain), therefore, it becomes necessary to classify them into another pillar (pillar is being replaced by Domain in this tool) for easy and consistent reporting. The fourth domain was called "Development and Growth" This domain will be used to classify all the overlapping indicators.
B19: New break up of Sustainable Development domains are as below:
B20: Environment | C20: This domain would only cater to changes in environment (pollution reduction or quality improvement) due to an intervention
B21: Social | C21: This domain would cater to social aspects of the intervention. Since the social impacts would also have an impact on economic benefits, this domain will only assess the social impacts, which are not linked to any other domains
B22: Growth and Development | C22: This domain will cater to the development aspects of the intervention without linking it to financial benefits.
B23: Economic | C23: This domain would calculate the economic (money) related benefits which can be measured directly.
B25: Indicators
B26: The tool proposes selecting indicators that reflect how the NAMA interventions support sustainable development. In order to limit the burden on human and financial resources to measure and report data, policy-makers should select a small, core list of indicators that are specific, meaningful, measurable, and cost-effective to collect. They should also be pertinent and easy to understand.
B27: At least one indicator per domain needs to be assessed by the NAMA implementer.
B28: Indicators have been selected after a deep analysis of the existing NAMAs papers from the UNEP Risoe and Ecofys databases and also have been sorted according to their relevance to SDGs which are under development.
B30: This tool has described the relevance of indicators to SDGs, however this may be subject to change as the SDGs are yet not finalized. SDGs are listed below.
B33: Contents of the tool /description of the tabs
B35: The tool consists of the following tabs:
B36: SDGs and Targets | C36: SDGs and Targets | D36: Lists the SDGs and relative targets
B37: Instructions | C37: Instructions | D37: Provides instructions for the user and guidance for monitoring
B38: SD Evaluation | C38: NAIs | D38: Provides a summary of the NAIs calculated
B39: Selections of indicators | C39: Selection of indicators | D39: Provides a table for the selection of the indicators
B40: Monitoring | C40: Intervention 1 | D40: Evaluates the SD benefits of the intervention 1
C41: MRV Intervention 1 | D41: Provides tables for the MRV procedures of intervention 1
C42: Monitoring sheet | D42: Lists the monitoring parameters
B45: NAMA's information
B47: Name | C47: Adaptation and Mitigation Initiatives in Philippine Rice Cultivation
B48: NAMA implementer | C48: Department of Agriculture, Government of the Philippines
B49: Country | C49: Philippines
B51: Intervention | E51: Short description of intervention | I51: Intervention implementers
B52: Implementation of Alternate Wetting and Drying (AWD) in Rice Cultivation at Irrigated Rice Fields | E52: Change in rice cultivation practice from continuous flooding, which is the traditional and prevailing practice in the Philippines, to AWD | I52: Rice farmers
B58: Determination of NAMA ambition and NAMA success with Nationally Appropriate Improvements (NAIs):
B59: NAIs are calculated for each intervention, the mean value is determined for each domain, and the overall ambition and success of the NAMA calculated as the mean value over all domains. The applied formula are shown as follows:
C60: The more the better | D60: The fewer the better | H60: Baseline = 0
B61: NAIest =
B62: NAIex-post =
B63: Evaluation of Project =
B65: Whereas:
B66: Vbasic: | C66: Baseline Value
B67: Vest: | C67: Estimated Target-Value
B68: Vex-post: | C68: Monitored Intervention-Value
B69: NAIest: | C69: Estimated NAI (ex ante)
B70: NAIex-post: | C70: Monitored NAI (ex-post)
B72: Sustainable Development Goals (SDGs) ( Currently being finalized and subject to change)
B73: SDGs refer to an agreement of the United Nations Conference on Sustainable Development held in Rio in June 2012 (Rio+20), to develop a set of future international development goals.
B74: These goals constitute an integrated, indivisible set of global priorities for sustainable development. Targets are defined as aspirational global targets.
B75: This tool makes a link between the indicators chosen for each domain and the corresponding targets. The chosen parameters indicate the positive impact of the intervention to the related target.
B76: SDGs have been further elaborated in SDGs and Targets Tab:
B77: SDGs and Targets
B80: Copyright 2014 United Nations Development Programme

Sheet SDGs and Targets
B1: SDGs and Targets
A3: Goal Number | B3: Goal Aim | G3: Goal Targets
A4: Goal 1 | B4: End poverty in all its forms everywhere | G4: 1.1 by 2030, eradicate extreme poverty for all people everywhere, currently measured as people living on less than $1.25 a day 1.2 by 2030, reduce at least by half the proportion of men, women and children of all ages living in poverty in all its dimensions according to national definitions 1.3 implement nationally appropriate social protection systems and measures for all, including floors, and by 2030 achieve substantial coverage of the poor and the vulnerable 1.4 by 2030 ensure that all men and women, particularly the poor and the vulnerable, have equal rights to economic resources, as well as access to basic services, ownership, and control over land and other forms of property, inheritance, natural resources, appropriate new technology, and financial services including microfinance 1.5 by 2030 build the resilience of the poor and those in vulnerable situations, and reduce their exposure and vulnerability to climate-related extreme events and other economic, social and environmental shocks and disasters 1.a. ensure significant mobilization of resources from a variety of sources, including through enhanced development cooperation to provide adequate and predictable means for developing countries, in particular LDCs, to implement programmes and policies to end poverty in all its dimensions 1.b create sound policy frameworks, at national, regional and international levels, based on pro-poor and gender-sensitive development strategies to support accelerated investments in poverty eradication actions
A5: Goal 2 | B5: End Hunger, achieve food security and adequate nutrition for all and promote sustainable agriculture | G5: 2.1 by 2030 end hunger and ensure access by all people, in particular the poor and people in vulnerable situations including infants, to safe, nutritious and sufficient food all year round 2.2 by 2030 end all forms of malnutrition, including achieving by 2025 the internationally agreed targets on stunting and wasting in children under five years of age, and address the nutritional needs of adolescent girls, pregnant and lactating women, and older persons 2.3 by 2030 double the agricultural productivity and the incomes of small-scale food producers, particularly women, indigenous peoples, family farmers, pastoralists and fishers, including through secure and equal access to land, other productive resources and inputs, knowledge, financial services, markets, and opportunities for value addition and non-farm employment 2.4 by 2030 ensure sustainable food production systems and implement resilient agricultural practices that increase productivity and production, that help maintain ecosystems, that strengthen capacity for adaptation to climate change, extreme weather, drought, flooding and other disasters, and that progressively improve land and soil quality 2.5 by 2020 maintain genetic diversity of seeds, cultivated plants, farmed and domesticated animals and their related wild species, including through soundly managed and diversified seed and plant banks at national, regional and international levels, and ensure access to and fair and equitable sharing of benefits arising from the utilization of genetic resources and associated traditional knowledge as internationally agreed 2.a increase investment, including through enhanced international cooperation, in rural infrastructure, agricultural research and extension services, technology development, and plant and livestock gene banks to enhance agricultural productive capacity in developing countries, in particular in least developed countries 2.b. correct and prevent trade restrictions and distortions in world agricultural markets including by the parallel elimination of all forms of agricultural export subsidies and all export measures with equivalent effect, in accordance with the mandate of the Doha Development Round 2.c. adopt measures to ensure the proper functioning of food commodity markets and their derivatives, and facilitate timely access to market information, including on food reserves, in order to help limit extreme food price volatility
A6: Goal 3 | B6: Attain healthy life for all at all ages | G6: 3.1 by 2030 reduce the global maternal mortality ratio to less than 70 per 100,000 live births 3.2 by 2030 end preventable deaths of newborns and under-five children 3.3 by 2030 end the epidemics of AIDS, tuberculosis, malaria, and neglected tropical diseases and combat hepatitis, water-borne diseases, and other communicable diseases 3.4 by 2030 reduce by one-third pre-mature mortality from non-communicable diseases (NCDs) through prevention and treatment, and promote mental health and wellbeing 3.5 strengthen prevention and treatment of substance abuse, including narcotic drug abuse and harmful use of alcohol 3.6 by 2020 halve global deaths and injuries from road traffic accidents 3.7 by 2030 ensure universal access to sexual and reproductive health care services, including for family planning, information and education, and the integration of reproductive health into national strategies and programmes 3.8 achieve universal health coverage (UHC), including financial risk protection, access to quality essential health care services, and access to safe, effective, quality, and affordable essential medicines and vaccines for all 3.9 by 2030 substantially reduce the number of deaths and illnesses from hazardous chemicals and air, water, and soil pollution and contamination 3.a strengthen implementation of the Framework Convention on Tobacco Control in all countries as appropriate 3.b support research and development of vaccines and medicines for the communicable and non-communicable diseases that primarily affect developing countries, provide access to affordable essential medicines and vaccines, in accordance with the Doha Declaration which affirms the right of developing countries to use to the full the provisions in the TRIPS agreement regarding flexibilities to protect public health and, in particular, provide access to medicines for all 3.c increase substantially health financing and the recruitment, development and training and retention of the health workforce in developing countries, especially in LDCs and SIDS 3.d strengthen the capacity of all countries, particularly developing countries, for early warning, risk reduction, and management of national and global health risks
A7: Goal 4 | B7: Provide equitable and inclusive quality education and life long learning opportunities for all | G7: 4.1 by 2030, ensure that all girls and boys complete free, equitable and quality primary and secondary education leading to relevant and effective learning outcomes 4.2 by 2030 ensure that all girls and boys have access to quality early childhood development, care and pre-primary education so that they are ready for primary education 4.3 by 2030 ensure equal access for all women and men to affordable quality technical, vocational and tertiary education, including university 4.4 by 2030, increase by x% the number of youth and adults who have relevant skills, including technical and vocational skills, for employment, decent jobs and entrepreneurship 4.5 by 2030, eliminate gender disparities in education and ensure equal access to all levels of education and vocational training for the vulnerable, including persons with disabilities, indigenous peoples, and children in vulnerable situations 4.6 by 2030 ensure that all youth and at least x% of adults, both men and women, achieve literacy and numeracy 4.7 by 2030 ensure all learners acquire knowledge and skills needed to promote sustainable development, including among others through education for sustainable development and sustainable lifestyles, human rights, gender equality, promotion of a culture of peace and non-violence, global citizenship, and appreciation of cultural diversity and of culture’s contribution to sustainable development 4.a build and upgrade education facilities that are child, disability and gender sensitive and provide safe, non-violent, inclusive and effective learning environments for all 4.b by 2020 expand by x% globally the number of scholarships for developing countries in particular LDCs, SIDS and African countries to enrol in higher education, including vocational training, ICT, technical, engineering and scientific programmes in developed countries and other developing countries 4.c by 2030 increase by x% the supply of qualified teachers, including through international cooperation for teacher training in developing countries, especially LDCs and SIDS
A8: Goal 5 | B8: Attain Gender equality, empower women and girls everywhere | G8: 5.1 end all forms of discrimination against all women and girls everywhere 5.2 eliminate all forms of violence against all women and girls in public and private spheres, including trafficking and sexual and other types of exploitation 5.3 eliminate all harmful practices, such as child, early and forced marriage and female genital mutilations 5.4 recognize and value unpaid care and domestic work through the provision of public services, infrastructure and social protection policies, and the promotion of shared responsibility within the household and the family as nationally appropriate 5.5 ensure women’s full and effective participation and equal opportunities for leadership at all levels of decision-making in political, economic, and public life 5.6 ensure universal access to sexual and reproductive health and reproductive rights as agreed in accordance with the Programme of Action of the ICPD and the Beijing Platform for Action and the outcome documents of their review conferences 5.a undertake reforms to give women equal rights to economic resources, as well as access to ownership and control over land and other forms of property, financial services, inheritance, and natural resources in accordance with national laws 5.b enhance the use of enabling technologies, in particular ICT, to promote women’s empowerment 5.c adopt and strengthen sound policies and enforceable legislation for the promotion of gender equality and the empowerment of all women and girls at all levels
A9: Goal 6 | B9: Secure water and sanitation for a sustainable world | G9: 6.1 by 2030, achieve universal and equitable access to safe and affordable drinking water for all 6.2 by 2030, achieve access to adequate and equitable sanitation and hygiene for all, and end open defecation, paying special attention to the needs of women and girls and those in vulnerable situations 6.3 by 2030, improve water quality by reducing pollution, eliminating dumping and minimizing release of hazardous chemicals and materials, halving the proportion of untreated wastewater, and increasing recycling and safe reuse by x% globally 6.4 by 2030, substantially increase water-use efficiency across all sectors and ensure sustainable withdrawals and supply of freshwater to address water scarcity, and substantially reduce the number of people suffering from water scarcity 6.5 by 2030 implement integrated water resources management at all levels, including through transboundary cooperation as appropriate 6.6 by 2020 protect and restore water-related ecosystems, including mountains, forests, wetlands, rivers, aquifers and lakes 6.a by 2030, expand international cooperation and capacity-building support to developing countries in water and sanitation related activities and programmes, including water harvesting, desalination, water efficiency, wastewater treatment, recycling and reuse technologies 6.b support and strengthen the participation of local communities for improving water and sanitation management
A10: Goal 7 | B10: Ensure access to affordable, sustainable and reliable modern energy services for all | G10: 7.1 by 2030 ensure universal access to affordable, reliable, and modern energy services 7.2 increase substantially the share of renewable energy in the global energy mix by 2030 7.3 double the global rate of improvement in energy efficiency by 2030 7.a by 2030 enhance international cooperation to facilitate access to clean energy research and technologies, including renewable energy, energy efficiency, and advanced and cleaner fossil fuel technologies, and promote investment in energy infrastructure and clean energy technologies 7.b by 2030 expand infrastructure and upgrade technology for supplying modern and sustainable energy services for all in developing countries, particularly LDCs and SIDS
A11: Goal 8 | B11: Promote strong, inclusive and sustainable economic growth and decent work for all | G11: 8.1 sustain per capita economic growth in accordance with national circumstances, and in particular at least 7% per annum GDP growth in the least-developed countries 8.2 achieve higher levels of productivity of economies through diversification, technological upgrading and innovation, including through a focus on high value added and labour-intensive sectors 8.3 promote development-oriented policies that support productive activities, decent job creation, entrepreneurship, creativity and innovation, and encourage formalization and growth of micro-, small- and medium-sized enterprises including through access to financial services 8.4 improve progressively through 2030 global resource efficiency in consumption and production, and endeavour to decouple economic growth from environmental degradation in accordance with the 10-year framework of programmes on sustainable consumption and production with developed countries taking the lead 8.5 by 2030 achieve full and productive employment and decent work for all women and men, including for young people and persons with disabilities, and equal pay for work of equal value 8.6 by 2020 substantially reduce the proportion of youth not in employment, education or training 8.7 take immediate and effective measures to secure the prohibition and elimination of the worst forms of child labour, eradicate forced labour, and by 2025 end child labour in all its forms including recruitment and use of child soldiers 8.8 protect labour rights and promote safe and secure working environments of all workers, including migrant workers, particularly women migrants, and those in precarious employment 8.9 by 2030 devise and implement policies to promote sustainable tourism which creates jobs, promotes local culture and products 8.10 strengthen the capacity of domestic financial institutions to encourage and to expand access to banking, insurance and financial services for all 8.a increase Aid for Trade support for developing countries, particularly LDCs, including through the Enhanced Integrated Framework for LDCs 8.b by 2020 develop and operationalize a global strategy for youth employment and implement the ILO Global Jobs Pact
A12: Goal 9 | B12: Promote sustainable industrialization | G12: 9.1 develop quality, reliable, sustainable and resilient infrastructure, including regional and trans-border infrastructure, to support economic development and human well-being, with a focus on affordable and equitable access for all 9.2 promote inclusive and sustainable industrialization, and by 2030 raise significantly industry’s share of employment and GDP in line with national circumstances, and double its share in LDCs 9.3 increase the access of small-scale industrial and other enterprises, particularly in developing countries, to financial services including affordable credit and their integration into value chains and markets 9.4 by 2030 upgrade infrastructure and retrofit industries to make them sustainable, with increased resource use efficiency and greater adoption of clean and environmentally sound technologies and industrial processes, all countries taking action in accordance with their respective capabilities 9.5 enhance scientific research, upgrade the technological capabilities of industrial sectors in all countries, particularly developing countries, including by 2030 encouraging innovation and increasing the number of R&D workers per one million people by x% and public and private R&D spending 9.a facilitate sustainable and resilient infrastructure development in developing countries through enhanced financial, technological and technical support to African countries, LDCs, LLDCs and SIDS 9.b support domestic technology development, research and innovation in developing countries including by ensuring a conducive policy environment for inter alia industrial diversification and value addition to commodities 9.c significantly increase access to ICT and strive to provide universal and affordable access to internet in LDCs by 2020
A13: Goal 10 | B13: Reduce inequality within and among countries | G13: 10.1 by 2030 progressively achieve and sustain income growth of the bottom 40% of the population at a rate higher than the national average 10.2 by 2030 empower and promote the social, economic and political inclusion of all irrespective of age, sex, disability, race, ethnicity, origin, religion or economic or other status 10.3 ensure equal opportunity and reduce inequalities of outcome, including through eliminating discriminatory laws, policies and practices and promoting appropriate legislation, policies and actions in this regard 10.4 adopt policies especially fiscal, wage, and social protection policies and progressively achieve greater equality 10.5 improve regulation and monitoring of global financial markets and institutions and strengthen implementation of such regulations 10.6 ensure enhanced representation and voice of developing countries in decision making in global international economic and financial institutions in order to deliver more effective, credible, accountable and legitimate institutions 10.7 facilitate orderly, safe, regular and responsible migration and mobility of people, including through implementation of planned and well-managed migration policies 10.a implement the principle of special and differential treatment for developing countries, in particular least developed countries, in accordance with WTO agreements 10.b encourage ODA and financial flows, including foreign direct investment, to states where the need is greatest, in particular LDCs, African countries, SIDS, and LLDCs, in accordance with their national plans and programmes 10.c by 2030, reduce to less than 3% the transaction costs of migrant remittances and eliminate remittance corridors with costs higher than 5%
A14: Goal 11 | B14: Build inclusive, safe and sustainable cities and human settlements | G14: 11.1 by 2030, ensure access for all to adequate, safe and affordable housing and basic services, and upgrade slums 11.2 by 2030, provide access to safe, affordable, accessible and sustainable transport systems for all, improving road safety, notably by expanding public transport, with special attention to the needs of those in vulnerable situations, women, children, persons with disabilities and older persons 11.3 by 2030 enhance inclusive and sustainable urbanization and capacities for participatory, integrated and sustainable human settlement planning and management in all countries 11.4 strengthen efforts to protect and safeguard the world’s cultural and natural heritage 11.5 by 2030 significantly reduce the number of deaths and the number of affected people and decrease by y% the economic losses relative to GDP caused by disasters, including water-related disasters, with the focus on protecting the poor and people in vulnerable situations 11.6 by 2030, reduce the adverse per capita environmental impact of cities, including by paying special attention to air quality, municipal and other waste management 11.7 by 2030, provide universal access to safe, inclusive and accessible, green and public spaces, particularly for women and children, older persons and persons with disabilities 11.a support positive economic, social and environmental links between urban, peri-urban and rural areas by strengthening national and regional development planning 11.b by 2020, increase by x% the number of cities and human settlements adopting and implementing integrated policies and plans towards inclusion, resource efficiency, mitigation and adaptation to climate change, resilience to disasters, develop and implement in line with the forthcoming Hyogo Framework holistic disaster risk management at all levels 11.c support least developed countries, including through financial and technical assistance, for sustainable and resilient buildings utilizing local materials
A15: Goal 12 | B15: Promote sustainable consumption and production patterns | G15: 12.1 implement the 10-Year Framework of Programmes on sustainable consumption and production (10YFP), all countries taking action, with developed countries taking the lead, taking into account the development and capabilities of developing countries 12.2 by 2030 achieve sustainable management and efficient use of natural resources 12.3 by 2030 halve per capita global food waste at the retail and consumer level, and reduce food losses along production and supply chains including post-harvest losses 12.4 by 2020 achieve environmentally sound management of chemicals and all wastes throughout their life cycle in accordance with agreed international frameworks and significantly reduce their release to air, water and soil to minimize their adverse impacts on human health and the environment 12.5 by 2030, substantially reduce waste generation through prevention, reduction, recycling, and reuse 12.6 encourage companies, especially large and trans-national companies, to adopt sustainable practices and to integrate sustainability information into their reporting cycle 12.7 promote public procurement practices that are sustainable in accordance with national policies and priorities 12.8 by 2030 ensure that people everywhere have the relevant information and awareness for sustainable development and lifestyles in harmony with nature 12.a support developing countries to strengthen their scientific and technological capacities to move towards more sustainable patterns of consumption and production 12.b develop and implement tools to monitor sustainable development impacts for sustainable tourism which creates jobs, promotes local culture and products 12.c rationalize inefficient fossil fuel subsidies that encourage wasteful consumption by removing market distortions, in accordance with national circumstances, including by restructuring taxation and phasing out those harmful subsidies, where they exist, to reflect their environmental impacts, taking fully into account the specific needs and conditions of developing countries and minimizing the possible adverse impacts on their development in a manner that protects the poor and the affected communities
A16: Goal 13 | B16: Promote actions at all levels to address climate change/build climate change goal based on COP 21 of the UNFCCC | G16: 13.1 strengthen resilience and adaptive capacity to climate related hazards and natural disasters in all countries 13.2 integrate climate change measures into national policies, strategies, and planning 13.3 improve education, awareness raising and human and institutional capacity on climate change mitigation, adaptation, impact reduction, and early warning 13.a implement the commitment undertaken by developed country Parties to the UNFCCC to a goal of mobilizing jointly USD100 billion annually by 2020 from all sources to address the needs of developing countries in the context of meaningful mitigation actions and transparency on implementation and fully operationalize the Green Climate Fund through its capitalization as soon as possible 13.b Promote mechanisms for raising capacities for effective climate change related planning and management, in LDCs, including focusing on women, youth, local and marginalized communities
A17: Goal 14 | B17: Attain conservation and sustainable use of marine resources and seas | G17: 14.1 by 2025, prevent and significantly reduce marine pollution of all kinds, particularly from land-based activities, including marine debris and nutrient pollution 14.2 by 2020, sustainably manage and protect marine and coastal ecosystems to avoid significant adverse impacts, including by strengthening their resilience, and take action for their restoration, to achieve healthy and productive oceans 14.3 minimize and address the impacts of ocean acidification, including through enhanced scientific cooperation at all levels 14.4 by 2020, effectively regulate harvesting, and end overfishing, illegal, unreported and unregulated (IUU) fishing and destructive fishing practices and implement science-based management plans, to restore fish stocks in the shortest time feasible at least to levels that can produce maximum sustainable yield as determined by their biological characteristics 14.5 by 2020, conserve at least 10 per cent of coastal and marine areas, consistent with national and international law and based on best available scientific information 14.6 by 2020, prohibit certain forms of fisheries subsidies which contribute to overcapacity and overfishing, and eliminate subsidies that contribute to IUU fishing, and refrain from introducing new such subsidies, recognizing that appropriate and effective special and differential treatment for developing and least developed countries should be an integral part of the WTO fisheries subsidies negotiation * 14.7 by 2030 increase the economic benefits to SIDS and LDCs from the sustainable use of marine resources, including through sustainable management of fisheries, aquaculture and tourism 14.a increase scientific knowledge, develop research capacities and transfer marine technology taking into account the Intergovernmental Oceanographic Commission Criteria and Guidelines on the Transfer of Marine Technology, in order to improve ocean health and to enhance the contribution of marine biodiversity to the development of developing countries, in particular SIDS and LDCs 14.b provide access of small-scale artisanal fishers to marine resources and markets 14.c ensure the full implementation of international law, as reflected in UNCLOS for states parties to it, including, where applicable, existing regional and international regimes for the conservation and sustainable use of oceans and their resources by their parties
A18: Goal 15 | B18: Protect and restore terrestrial ecosystems and halt all biodiversity loss | G18: 15.1 by 2020 ensure conservation, restoration and sustainable use of terrestrial and inland freshwater ecosystems and their services, in particular forests, wetlands, mountains and drylands, in line with obligations under international agreements 15.2 by 2020, promote the implementation of sustainable management of all types of forests, halt deforestation, restore degraded forests, and increase afforestation and reforestation by x% globally 15.3 by 2020, combat desertification, and restore degraded land and soil, including land affected by desertification, drought and floods, and strive to achieve a land-degradation neutral world 15.4 by 2030 ensure the conservation of mountain ecosystems, including their biodiversity, to enhance their capacity to provide benefits which are essential for sustainable development 15.5 take urgent and significant action to reduce degradation of natural habitat, halt the loss of biodiversity, and by 2020 protect and prevent the extinction of threatened species 15.6 ensure fair and equitable sharing of the benefits arising from the utilization of genetic resources, and promote appropriate access to genetic resources 15.7 take urgent action to end poaching and trafficking of protected species of flora and fauna, and address both demand and supply of illegal wildlife products 15.8 by 2020 introduce measures to prevent the introduction and significantly reduce the impact of invasive alien species on land and water ecosystems, and control or eradicate the priority species 15.9 by 2020, integrate ecosystems and biodiversity values into national and local planning, development processes and poverty reduction strategies, and accounts 15.a mobilize and significantly increase from all sources financial resources to conserve and sustainably use biodiversity and ecosystems 15.b mobilize significantly resources from all sources and at all levels to finance sustainable forest management, and provide adequate incentives to developing countries to advance sustainable forest management, including for conservation and reforestation 15.c enhance global support to efforts to combat poaching and trafficking of protected species, including by increasing the capacity of local communities to pursue sustainable livelihood opportunities
A19: Goal 16 | B19: Achieve peaceful and inclusive societies, rue of law, effective and capable institutions | G19: 16.1 significantly reduce all forms of violence and related death rates everywhere 16.2 end abuse, exploitation, trafficking and all forms of violence and torture against children 16.3 promote the rule of law at the national and international levels, and ensure equal access to justice for all 16.4 by 2030 significantly reduce illicit financial and arms flows, strengthen recovery and return of stolen assets, and combat all forms of organized crime 16.5 substantially reduce corruption and bribery in all its forms 16.6 develop effective, accountable and transparent institutions at all levels 16.7 ensure responsive, inclusive, participatory and representative decision-making at all levels 16.8 broaden and strengthen the participation of developing countries in the institutions of global governance 16.9 by 2030 provide legal identity for all including birth registration 16.10 ensure public access to information and protect fundamental freedoms, in accordance with national legislation and international agreements 16.a strengthen relevant national institutions, including through international cooperation, for building capacities at all levels, in particular in developing countries, for preventing violence and combating terrorism and crime 16.b promote and enforce non-discriminatory laws and policies for sustainable development
A20: Goal 17 | B20: Strengthen and enhance the means of implementation and global partnerships for sustainable development | G20: Finance 17.1 strengthen domestic resource mobilization, including through international support to developing countries to improve domestic capacity for tax and other revenue collection 17.2 developed countries to implement fully their ODA commitments, including to provide 0.7% of GNI in ODA to developing countries of which 0.15-0.20% to least-developed countries 17.3 mobilize additional financial resources for developing countries from multiple sources 17.4 assist developing countries in attaining long-term debt sustainability through coordinated policies aimed at fostering debt financing, debt relief and debt restructuring, as appropriate, and address the external debt of highly indebted poor countries (HIPC) to reduce debt distress 17.5 adopt and implement investment promotion regimes for LDCs Technology 17.6 enhance North-South, South-South and triangular regional and international cooperation on and access to science, technology and innovation, and enhance knowledge sharing on mutually agreed terms, including through improved coordination among existing mechanisms, particularly at UN level, and through a global technology facilitation mechanism when agreed 17.7 promote development, transfer, dissemination and diffusion of environmentally sound technologies to developing countries on favourable terms, including on concessional and preferential terms, as mutually agreed 17.8 fully operationalize the Technology Bank and STI (Science, Technology and Innovation) capacity building mechanism for LDCs by 2017, and enhance the use of enabling technologies in particular ICT Capacity building 17.9 enhance international support for implementing effective and targeted capacity building in developing countries to support national plans to implement all sustainable development goals, including through North-South, South-South, and triangular cooperation Trade 17.10 promote a universal, rules-based, open, non-discriminatory and equitable multilateral trading system under the WTO including through the conclusion of negotiations within its Doha Development Agenda 17.11 increase significantly the exports of developing countries, in particular with a view to doubling the LDC share of global exports by 2020 17.12 realize timely implementation of duty-free, quota-free market access on a lasting basis for all least developed countries consistent with WTO decisions, including through ensuring that preferential rules of origin applicable to imports from LDCs are transparent and simple, and contribute to facilitating market access Systemic issues Policy and institutional coherence 17.13 enhance global macroeconomic stability including through policy coordination and policy coherence 17.14 enhance policy coherence for sustainable development 17.15 respect each country’s policy space and leadership to establish and implement policies for poverty eradication and sustainable development Multi-stakeholder partnerships 17.16 enhance the global partnership for sustainable development complemented by multi-stakeholder partnerships that mobilize and share knowledge, expertise, technologies and financial resources to support the achievement of sustainable development goals in all countries, particularly developing countries 17.17 encourage and promote effective public, public-private, and civil society partnerships, building on the experience and resourcing strategies of partnerships Data, monitoring and accountability 17.18 by 2020, enhance capacity building support to developing countries, including for LDCs and SIDS, to increase significantly the availability of high-quality, timely and reliable data disaggregated by income, gender, age, race, ethnicity, migratory status, disability, geographic location and other characteristics relevant in national contexts 17.19 by 2030, build on existing initiatives to develop measurements of progress on sustainable development that complement GDP, and support statistical capacity building in developing countries

Sheet Instructions
B2: Instructions
B4: Step wise instruction for users to fill the subsequent Tabs
B6: Important information to note: the steps below are for each intervention, NAMA implementor needs to collate the information from each intervention
B8: Tab: Selection of indicators
B9: Step 1: Identify all the positive and negative impacts of the intervention/NAMA and place all the identified impacts against the respective domains and indicator list. Mark the Column "Selected" as yes or no if the indicator is relevant to the intervention or not. You can identify the indicator also based on Relevance to SDG goals.
B10: Step 2: After placing the identified impacts against the respective indicators, provide justification for the each indicator and state whether this indicator will be selected or not. Select at least one indicator per domain and mark the last column as yes or no against the selected indicator (This is done to cross check the intervention tab)
B11: Step 3: After step 3, follow the drop down list in column F "Effect on indicator" and classify the effect as Positive, Negative or Both. It is important for all Intervention Implementers to list the effects to the best possible way. Also, note: Negative impacts need to be mitigated and monitored (unless a strong argument is given for non monitoring)
B12: Replicate the above steps if the NAMA has more than 1 intervention
B14: Tab: Intervention
B15: Step 1: Based on Indicator selection in the pervious tab, select the number of parameters, the parameter type and effect from the drop down list for each indicator being monitored. Put NA (Not Applicable) for indicators which are not being monitored in column number of parameters selected. Also note that if the Nama implementor does not find a suitable parameter from the drop down list, they may add the relevant parameter in the column "other parameters".
B16: Step 2: For the parameter identified, please indicate the measurement value in column H ( for example whether it will be measured via a literature value or through a survey, etc etc). Intervention Implementer can define the best possible way of measurement.
B17: Step 3: Indicate in column I if the indicated measurement way is a direct or an indirect way via the drop down list. Implementers may note that the way defined in this column will be observed during both the baseline and project. In case there is a change in the project measurement type, Implementers should specify that by adding a column next to project values and indicate the reason for this change.
B18: Step 5: Each implementor needs to put the target value to be achieved for each parameter/indicator in column K. Target value will be defined by the NAMA developer
B19: Step 6: Indicate the unit of measurement of each parameter being monitored in column M
B20: Step 7: Calculation of NAI's - Once the implementor fills in baseline, target values, column N automatically calculates the NAIs estimated. Ex-post, once the implementer fills in the intervention value monitored, column O will automatically calculate the NAIs monitored. NAIs estimated and NAIs monitored show the success of the NAMA.
B21: Replicate the above steps and add more sheets; if the NAMA has more than 1 intervention
B23: Tab: MRV
B24: Step 1: Replicate the MRV box for each parameter being monitored.
B25: Step 2: Define in details the way of monitoring, who will be monitoring (it can be the Intervention implemeter) and how it will be monitored. In case of indirect measurement, please indicate the formula being used for calculations.
B26: Step3: Define in details the QC procedures to be followed for each parameter.
B27: Step 4: Link the baseline values and project values to the monitoring sheet.
B28: Replicate the above steps and add more sheets; if the NAMA has more than 1 intervention
B30: Tab: Monitoring
B31: Step 1: Classify all the information needed for one intervention type such as households in intervention, number of women per households etc.
B32: Step 2: In case of any formulas being used, please put the formulae's into the respective cell and define the values in another column
B33: Replicate the above steps and add more sheets; if the NAMA has more than 1 intervention
B36: Guidance on monitoring
B39: Important points to be noted:
B40: Monitoring needs to be done at each intervention level. It will be intervention implementers' responsibility to assign the duties for monitoring and reporting in the MRV structure.
B42: Surveys can be both indirect and direct way of monitoring, and Implementation agency will define how the survey will be used. Implementation agency will also draft the household survey form for each intervention. In case the implementation agency uses the census, they need the define the parameters which are taken from census and justify the frequency defined for monitoring.
B44: Monitoring frequency: fixed at 3 years for all the parameters.
B46: QA/QC procedures
B47: The NAMA's implementer shall establish a QA/QC system to ensure the good quality of data. The quality control (QC) procedures is used for compiling, developing and maintaining the required datasets and the quality assurance (QA) procedures for ensuring the overall quality of the datasets by assessing the conformity and the effectiveness of the QC system, based on data quality objectives and general provisions
B48: For the QA/QC process, the following data quality objectives should be taken into account:
B49: Relevance: collect data and information required for the establishment of baseline and mainly activity data and information applicable for the assessment of impacts
B50: Completeness: include all relevant activity data and information to produce "true and fair" representative data
B51: Consistency: present the same data in the same definition/scope/format and make the datasets compatible with other related data
B52: Credibility: identify and utilize authoritative data sources. Collected data/information should always reference their sources (examples of sources: data providers, NAMA's implementer, government authorities, peer-reviewed international statistics documents, research institutes, individual academic research work institutions, technology supplier)
B53: Correctness: utilize the most recent data available in a sector in order to reflect the current economic and technological practices (one to 3 years before the submission of the NAMA).
B54: Accuracy: reduce errors and uncertainties as far as it is practical and cost-effective
B55: Objectivity: avoid biased, prejudiced and partial information.
B56: Conservativeness: ensure to use a conservative approach in case of missing or incomplete data
B57: Transparency: disclose sufficient and appropriate data and processes to allow monitoring of the quality of the compiled datasets
B58: Traceability: document all data sources
B60: Sampling guidance for surveys
B61: For monitoring parameters which are determined using a survey, the following guidance should be used:
B62: The survey should be conducted following simple random sampling approach and the minimum sample size should be determined as per the guidelines below:
B63: Project target population < 300: Minimum sampling size 30 or population size (which ever is the smallest)
B64: Project target population 300 to 1000: Minimum sample size 10% of groupe size
B65: Project target population > 1000: Minimum sample size 100

Sheet Selection of indicators
B1: Selection of indicators
B3: Intervention Name | C3: =Introduction!B52 -> Implementation of Alternate Wetting and Drying (AWD) in Rice Cultivation at Irrigated Rice Fields
B6: Domain | C6: Indicator | D6: Relevance to SDGs and Targets | E6: Selected (Yes/No) | F6: Identified Impacts | G6: Explanation of Chosen Indicator | H6: Effect on Indicator | I6: Monitoring done (Yes/No)
B7: Environment | C7: Air pollution/quality | D7: Goal 11, Target 11.6 | H7: Positive | I7: Yes
C8: Water pollution/quality | D8: Goal 6, Target 6.6 Goal 11, Target 11.6 Goal 12, Target 12.4 | E8: Yes | F8: Increased water savings | G8: AWD leads to sognificant water savings as a result of improved irrigation | H8: Positive | I8: No
C9: Soil pollution/quality | D9: Goal 2, Target 2.4 Goal 11, Target 11.6 Goal 12, Target 12.4 | E9: Yes | F9: Improved soil quality | G9: AWD involves periodic aeration of the soil which results in higher zinc availability, as well as increased plant root anchorage and lodging resistance. | H9: Positive | I9: No
C10: Others (Noise/visibility) | D10: Goal 11, Target 11.6
C11: Biodiversity and ecosystem balance | D11: Goal 14, All Targets Goal 15, All Targets
B13: Social | C13: Health | D13: Goal 3, All Targets
C14: Livelihood of poor, poverty alleviation, peace | D14: Goal 1, All Targets Goal 2, Target 2.1 Goal 16, Target 16.1 | E14: Yes | F14: Provide livelihood for poor/poverty alleviation. Decrease conflicts among farmers | G14: Water savings from the implementation of AWD results in increased total irrigated land area. As a result, more farmers and farm helpers are required, providing additional livelihood for the poor farming communities; Because of the availability of more irrigation water for downstream farmers due to AWD, irrigation conflicts between upstream-downstream farming communities are decreased. | H14: Positive | I14: No
C15: Affordability of electricity | D15: Goal 7, Targets 7.1
C16: Access to sanitation and clean drinking water | D16: Goal 6, Tagets 6.1, 6.2, 6.4, 6.5
C17: Food security (Access to land and sustainable agriculture) | D17: Goal 2, All Targets Goal 12, Target 12.3 | E17: Yes | F17: Increase in rice production. Increase in irrigated land | G17: Water savings from the implementation of AWD results in increased total irrigated land area. Proportionately, increase in total number of rice fields results in the increase in rice yield. | H17: Positive | I17: Yes
C18: Quality of employment | D18: Goal 8, Targets 8.2, 8.3, 8.5, 8.6, 8.7, 8.8
C19: Time savings/time availability due to project | D19: Goal 1
C20: No child labour | D20: Goal 8, Target 8.6
C21: Provides vulnerable groups access to local resources and services | D21: Goal 6, Targets 6.4, 6.5, 6.6, 6.a, 6.b | E21: Yes | F21: Increase access to water resources | G21: AWD is a water management practice in rice cultivation promoting the efficient use of water resources. This provides vulnerable groups access to water resources and services which were not previously available to them, resulting in increased total irrigated land area. | H21: Positive | I21: Yes
B23: Growth and Development | C23: Access to clean and sustainable energy | D23: Goal 7, Targets 7.1, 7.2, 7.3
C24: Education | D24: Goal 4, All Targets | F24: Increased capacity for growing alternative crops | G24: The AMIA will allow a large number of farmers to gain the necessary skills for growing alternative crops and practice alternative cropping. | H24: Positive | I24: Yes
C25: Empowerment of women | D25: Goal 4, Targets 4.3, 4.6 Goal 5, All Targets
C26: Access to sustainable technology | D26: Goal 4, Target 4.3 Goal 7, Targets 7a, 7b Goal 9, Target 9b | E26: Yes | F26: Access to sustainable technology | G26: The AMIA implementer will be providing the required capacity-building for the implementation of the AWD nationwide through direct interaction with the farmers and IAs. Being the country's authority on rice research, participating farmers and IAs will have the opprotunity to access other available sustainable technologies from PhilRice, such as variety development, pest and nutrient management, devising decision support tools, water harvesting and conservation, diversified/integrated farming, area mapping, and vulnerability studies. | H26: Positive | I26: Yes
C27: Energy security | D27: Goal 7, Target 7.1, 7.2, 7.3
C28: Capacity-building | D28: Goal 4, Target 4.3, 4.5 Goal 6, Target 6.a | E28: Yes | F28: Knowhow transfer | G28: The AMIA implementer will provide proper training and knowhow transfer of AWD implementation to the irrigation officers, irrigators associations and individual farmers. | H28: Positive | I28: Yes
C29: Equality (quality of jobs given, job conditions for men/women) | D29: Goal 4, Targets 4.1, 4.2, 4.3, 4.7 Goal 5, All Targets Goal 10, Target 10.4
B31: Economic | C31: Income generation/expenditure reduction/Balance of payments | D31: Goal 8, Targets 8.1, 8.2, 8.3, 8.4 Goal 10, Target 10.1 | E31: Yes | F31: Increased income for farmers. Increased collection of ISF | G31: Increased income for the farmers as a result of the lower rice production cost (ISF); Increased income for the NIA and IAs as a result of increased collection rate of the ISF. It is expected that more farmers would be willing to pay the ISF because of better satisfaction with irrigation services. | H31: Positive | I31: Yes
C32: Asset accumulation and investments | D32: Goal 7, Targets 7a, 7b Goal 9, All Targets Goal 17
C33: Job Creation (number of men and women employed) | D33: Goal 8, All Targets | E33: Yes | F33: New jobs created | G33: Water savings from the implementation of AWD results in increased total irrigated land area. As a result, more farmers and farm helpers are required, providing more jobs. | H33: Positive | I33: No
G34: "" | H34: ""

Sheet Intervention 1
C2: Intervention Name | D2: =Introduction!B52 -> Implementation of Alternate Wetting and Drying (AWD) in Rice Cultivation at Irrigated Rice Fields
B5: Domain | C5: Indicator | D5: Parameter Selection | H5: Measurement value | I5: Measurement type | J5: Baseline Value | L5: Intervention Value monitored (ex-post) | M5: Unit | N5: NAIs estimated (ex-ante) | O5: NAIs monitored (ex-post) | P5: Evaluation of Project Success
D6: Number of parameters selected per indicator | E6: Parameter name | F6: Other Parameters | G6: Effect | K6: Target value estimated (ex-ante)
B7: Environment | C7: Air pollution/quality | G7: +
C9: Water pollution/quality | G9: +
C11: Soil pollution/quality | G11: +
C13: Others (noise/visibility)
C15: Biodiversity and Ecosystem balance
B18: Social | C18: Health
C20: Livelihood of poor, poverty alleviation, peace
C22: Affordability of electricity
C24: Access to Sanitation and clean drinking water
C26: Food security (Access to land and sustainable agriculture) | D26: 2 | E26: Rice Production | G26: + | H26: National values | I26: Indirect | J26: 18032525 | K26: =J26+(13396483*0.05) -> 18702349.15 | L26: =J26+(13396483*0.05) -> 18702349.15 | M26: tons | N26: =IF(J26=0,((K26-J26)/K26),IF(G26="+",(K26-J26)/J26,(J26-K26)/J26)) -> 0.03714533322 | O26: =IF(J26=0,(((L26-J26)/L26)+(L26-K26)/K26),IF(G26="+",(L26-J26)/J26,(J26-L26)/J26)) -> 0.03714533322 | P26: =O26/N26 -> 1
E27: Harvested Land Area | G27: + | H27: National values | I27: Indirect | J27: 4690061 | K27: =J27+(750000*0.3) -> 4915061 | L27: =J27+(750000*0.3) -> 4915061 | M27: ha/yr | N27: =IF(J27=0,((K27-J27)/K27),IF(G27="+",(K27-J27)/J27,(J27-K27)/J27)) -> 0.04797378968 | O27: =IF(J27=0,(((L27-J27)/L27)+(L27-K27)/K27),IF(G27="+",(L27-J27)/J27,(J27-L27)/J27)) -> 0.04797378968 | P27: =O27/N27 -> 1
C28: Quality of employment
C30: Time savings/time availability due to project
C32: Provides vulnerable groups access to local resources and services | D32: 1 | E32: Harvested Land Area | G32: + | H32: National values | I32: Indirect | J32: 4690061 | K32: =J32+(750000*0.3) -> 4915061 | L32: =J32+(750000*0.3) -> 4915061 | M32: ha/yr | N32: =IF(J32=0,((K32-J32)/K32),IF(G32="+",(K32-J32)/J32,(J32-K32)/J32)) -> 0.04797378968 | O32: =IF(J32=0,(((L32-J32)/L32)+(L32-K32)/K32),IF(G32="+",(L32-J32)/J32,(J32-L32)/J32)) -> 0.04797378968 | P32: =O32/N32 -> 1
L34: Domain Average | N34: =AVERAGE(N18:N33) -> 0.04436430419 | O34: =AVERAGE(O18:O33) -> 0.04436430419 | P34: =AVERAGE(P18:P33) -> 1
B35: Growth and Development | C35: Access to clean and sustainable energy
C37: Education | D37: 1 | E37: Farmers who have Received Training on Alternative Cropping and Practice it | G37: + | H37: Area over which alternative cropping is practiced | I37: Direct | J37: 0 | K37: 750000 | L37: 750000 | M37: ha | N37: =IF(J37=0,((K37-J37)/K37),IF(G37="+",(K37-J37)/J37,(J37-K37)/J37)) -> 1 | O37: =IF(J37=0,(((L37-J37)/L37)+(L37-K37)/K37),IF(G37="+",(L37-J37)/J37,(J37-L37)/J37)) -> 1 | P37: =O37/N37 -> 1
C39: Empowerment of women
C41: Access to sustainable technology, Capacity development | D41: 1 | E41: Additional Services | G41: + | H41: Area over which AWD is practiced | I41: Direct | J41: 0 | K41: 750000 | L41: 750000 | M41: ha | N41: =IF(J41=0,((K41-J41)/K41),IF(G41="+",(K41-J41)/J41,(J41-K41)/J41)) -> 1 | O41: =IF(J41=0,(((L41-J41)/L41)+(L41-K41)/K41),IF(G41="+",(L41-J41)/J41,(J41-L41)/J41)) -> 1 | P41: =O41/N41 -> 1
C43: Energy security
C45: Capacity building | D45: 1 | E45: Trainings | G45: + | H45: Number of irrigation officers who have been trained | I45: Direct | J45: 0 | K45: 150 | L45: 150 | M45: Persons | N45: =IF(J45=0,((K45-J45)/K45),IF(G45="+",(K45-J45)/J45,(J45-K45)/J45)) -> 1 | O45: =IF(J45=0,(((L45-J45)/L45)+(L45-K45)/K45),IF(G45="+",(L45-J45)/J45,(J45-L45)/J45)) -> 1 | P45: =O45/N45 -> 1
C47: Equality (quality of jobs given, job condition for men/women)
L49: Domain Average | N49: =AVERAGE(N35:N48) -> 1 | O49: =AVERAGE(O35:O48) -> 1 | P49: =AVERAGE(P35:P48) -> 1
B50: Economic | C50: Income generation/expenditure reduction/Balance of payments | D50: 1 | E50: ISF | H50: ISF per ha | I50: Direct | J50: 4250 | K50: 3400 | L50: 3400 | M50: ₧/ha/season | N50: =IF(J50=0,((K50-J50)/K50),IF(G50="+",(K50-J50)/J50,(J50-K50)/J50)) -> 0.2 | O50: =IF(J50=0,(((L50-J50)/L50)+(L50-K50)/K50),IF(G50="+",(L50-J50)/J50,(J50-L50)/J50)) -> 0.2 | P50: =O50/N50 -> 1
E51: ISF collection percentage | G51: + | H51: Percentage of ISF collection | I51: Direct | J51: 70 | K51: 100 | L51: 100 | M51: Percentage | N51: =IF(J51=0,((K51-J51)/K51),IF(G51="+",(K51-J51)/J51,(J51-K51)/J51)) -> 0.4285714286 | O51: =IF(J51=0,(((L51-J51)/L51)+(L51-K51)/K51),IF(G51="+",(L51-J51)/J51,(J51-L51)/J51)) -> 0.4285714286 | P51: =O51/N51 -> 1
C52: Asset accumulation and investments
C54: Job Creation (number of men and women employed)
L56: Domain Average | N56: =AVERAGE(N50:N55) -> 0.3142857143 | O56: =AVERAGE(O50:O55) -> 0.3142857143 | P56: =AVERAGE(P50:P55) -> 1
M57: TOTAL AVERAGE | N57: =AVERAGE(N34,N49,N56) -> 0.4528833395 | O57: =AVERAGE(O34,O49,O56) -> 0.4528833395 | P57: 1
C62: NAI | D62: positive | E62: negative
C63: Environment | D63: =SUMIF(G7:G17,"+",N7:N17) -> 0 | E63: =SUMIF(G7:G17,"-",N7:N17) -> 0
C64: Social | D64: =SUMIF(G18:G31,"+",N18:N31) -> 0.0851191229 | E64: =SUMIF(G18:G25,"-",N18:N30) -> 0
C65: Growth and Development | D65: =SUMIF(G35:G49,"+",N35:N49) -> 3 | E65: =SUMIF(G35:G49,"-",N35:N49) -> 0
C66: Economic | D66: =SUMIF(G50:G56,"+",N50:N56) -> 0.4285714286 | E66: =SUMIF(G50:G56,"-",N50:N56) -> 0
C67: Total | D67: =SUM(D63:D66) -> 3.513690551 | E67: =SUM(E63:E66) -> 0

Sheet MRV_Interv1
C2: Intervention Name | D2: =Introduction!B52 -> Implementation of Alternate Wetting and Drying (AWD) in Rice Cultivation at Irrigated Rice Fields
B4: Serial number | C4: 1
B5: Indicator Name | C5: ='Selection of indicators'!C7 -> Air pollution/quality
B6: Domain | C6: Environment
B7: Parameter Name | C7: ='Intervention 1'!E7 -> 0
B8: Baseline Value | C8: ='Intervention 1'!J7 -> 0
B9: Way of monitoring | C9: How | D9: Calculated using national values for the total irrigated land area (hectares) and emission factors from "Standardized Baseline - Methane emissions from rice cultivation in the Republic of the Philippines"
C10: Frequency | D10: 3 years
C11: By whom | D11: NAMA Implementer
B12: Project Value | C12: ='Intervention 1'!L7 -> 0
B13: QA/QC procedures
C14: QC check done | D14: NAMA Implementer
B17: Serial number | C17: 1
B18: Indicator Name | C18: ='Selection of indicators'!C17 -> Food security (Access to land and sustainable agriculture)
B19: Domain | C19: Social
B20: Parameter Name | C20: ='Intervention 1'!E26 -> Rice Production
B21: Baseline Value | C21: ='Intervention 1'!J26 -> 18032525
B22: Unit | C22: ='Intervention 1'!M26 -> tons
B23: Way of monitoring | C23: How | D23: Obtained from national rice statistics values
C24: Frequency | D24: 3 years
C25: By whom | D25: AMIA Implementer
B26: Project Value | C26: ='Intervention 1'!K26 -> 18702349.15
B27: QA/QC procedures
C28: QC check done | D28: AMIA Implementer
B32: Serial number | C32: 2
B33: Indicator Name | C33: ='Selection of indicators'!C17 -> Food security (Access to land and sustainable agriculture)
B34: Domain | C34: Social
B35: Parameter Name | C35: ='Intervention 1'!E27 -> Harvested Land Area
B36: Baseline Value | C36: ='Intervention 1'!J27 -> 4690061
B37: Unit | C37: ='Intervention 1'!M27 -> ha/yr
B38: Way of monitoring | C38: How | D38: Obtained from national rice statistics values
C39: Frequency | D39: 3 years
C40: By whom | D40: AMIA Implementer
B41: Project Value | C41: ='Intervention 1'!K27 -> 4915061
B42: QA/QC procedures
C43: QC check done | D43: AMIA Implementer
B47: Serial number | C47: 3
B48: Indicator Name | C48: ='Selection of indicators'!C21 -> Provides vulnerable groups access to local resources and services
B49: Domain | C49: Social
B50: Parameter Name | C50: ='Intervention 1'!E32 -> Harvested Land Area
B51: Baseline Value | C51: ='Intervention 1'!J32 -> 4690061
B52: Unit | C52: ='Intervention 1'!M32 -> ha/yr
B53: Way of monitoring | C53: How | D53: Obtained from national rice statistics values
C54: Frequency | D54: 3 years
C55: By whom | D55: AMIA Implementer
B56: Project Value | C56: ='Intervention 1'!K32 -> 4915061
B57: QA/QC procedures
C58: QC check done | D58: AMIA Implementer
B62: Serial number | C62: 4
B63: Indicator Name | C63: ='Selection of indicators'!C26 -> Access to sustainable technology
B64: Domain | C64: Growth and Development
B65: Parameter Name | C65: ='Intervention 1'!E41 -> Additional Services
B66: Baseline Value | C66: ='Intervention 1'!J41 -> 0
B67: Unit | C67: Persons
B68: Way of monitoring | C68: How | D68: Obtained from national rice statistics values
C69: Frequency | D69: 3 years
C70: By whom | D70: AMIA Implementer
B71: Project Value | C71: ='Intervention 1'!L41 -> 750000
B72: QA/QC procedures
C73: QC check done | D73: AMIA Implementer
B77: Serial number | C77: 5
B78: Indicator Name | C78: ='Selection of indicators'!C28 -> Capacity-building
B79: Domain | C79: Growth and Development
B80: Parameter Name | C80: ='Intervention 1'!H45 -> Number of irrigation officers who have been trained
B81: Baseline Value | C81: ='Intervention 1'!J45 -> 0
B82: Unit | C82: ='Intervention 1'!M45 -> Persons
B83: Way of monitoring | C83: How | D83: AMIA Implementer
C84: Frequency | D84: 3 years
C85: By whom | D85: AMIA Implementer
B86: Project Value | C86: ='Intervention 1'!L45 -> 150
B87: QA/QC procedures
C88: QC check done | D88: AMIA Implementer
B91: Serial number | C91: 6
B92: Indicator Name | C92: ='Intervention 1'!C37 -> Education
B93: Domain | C93: ='Intervention 1'!B35 -> Growth and Development
B94: Parameter Name | C94: ='Intervention 1'!E37 -> Farmers who have Received Training on Alternative Cropping and Practice it
B95: Baseline Value | C95: ='Intervention 1'!J37 -> 0
B96: Unit | C96: Persons
B97: Way of monitoring | C97: How | D97: AMIA Implementer
C98: Frequency | D98: Annual
C99: By whom | D99: AMIA Implementer
B100: Project Value | C100: ='Intervention 1'!K37 -> 750000
B101: QA/QC procedures
C102: QC check done | D102: AMIA Implementer
B105: Serial number | C105: 7
B106: Indicator Name | C106: ='Selection of indicators'!C31 -> Income generation/expenditure reduction/Balance of payments
B107: Domain | C107: Economic
B108: Parameter Name | C108: ='Intervention 1'!H50 -> ISF per ha
B109: Baseline Value | C109: ='Intervention 1'!J50 -> 4250
B110: Unit | C110: ='Intervention 1'!M50 -> ₧/ha/season
B111: Way of monitoring | C111: How | D111: NIA ISF approved/published values
C112: Frequency | D112: 3 years
C113: By whom | D113: AMIA Implementer
B114: Project Value | C114: ='Intervention 1'!K50 -> 3400
B115: QA/QC procedures
C116: QC check done | D116: AMIA Implementer
B120: Serial number | C120: 8
B121: Indicator Name | C121: ='Selection of indicators'!C31 -> Income generation/expenditure reduction/Balance of payments
B122: Domain | C122: Economic
B123: Parameter Name | C123: ='Intervention 1'!H51 -> Percentage of ISF collection
B124: Baseline Value | C124: ='Intervention 1'!J51 -> 70
B125: Unit | C125: ='Intervention 1'!M51 -> Percentage
B126: Way of monitoring | C126: How | D126: NIA Statistics
C127: Frequency | D127: 3 years
C128: By whom | D128: NIA
B129: Project Value | C129: ='Intervention 1'!L51 -> 100
B130: QA/QC procedures
C131: QC check done | D131: NAMA Implementer

Sheet Monitoring sheet
B1: Calculations & Monitoring
B4: Intervention Name | C4: =Introduction!B52 -> Implementation of Alternate Wetting and Drying (AWD) in Rice Cultivation at Irrigated Rice Fields
B7: Villages per intervention
B8: Number of households per intervention
B9: Number of women users
B11: Parameter | C11: Unit | D11: Pre-Project | E11: Project
D12: Baseline value | E12: Year1 | F12: Intervention value monitored | G12: Year2 | H12: Intervention value monitored | I12: Year3
A13: 1 | B13: ='Intervention 1'!E26 -> Rice Production | C13: ='Intervention 1'!M26 -> tons | D13: ='Intervention 1'!J26 -> 18032525
A14: 2 | B14: ='Intervention 1'!E27 -> Harvested Land Area | C14: ='Intervention 1'!M27 -> ha/yr | D14: ='Intervention 1'!J27 -> 4690061
A15: 3 | B15: ='Intervention 1'!E37 -> Farmers who have Received Training on Alternative Cropping and Practice it | C15: Persons | D15: ='Intervention 1'!J41 -> 0
A16: 4 | B16: ='Intervention 1'!E45 -> Trainings | C16: ='Intervention 1'!M45 -> Persons | D16: ='Intervention 1'!J45 -> 0
A17: 5 | B17: ='Intervention 1'!E50 -> ISF | C17: ='Intervention 1'!M50 -> ₧/ha/season | D17: ='Intervention 1'!J50 -> 4250
A18: 6 | B18: ='Intervention 1'!E51 -> ISF collection percentage | C18: ='Intervention 1'!M51 -> Percentage | D18: ='Intervention 1'!J51 -> 70
A19: 7 | B19: ='Intervention 1'!H41 -> Area over which AWD is practiced | C19: ha | D19: ='Intervention 1'!J37 -> 0
A20: 8
A21: 9
A22: 10
A23: 11
A24: 12
A25: 13
A26: 14

Sheet Data Ranges (hidden)
A4: Effect on indicator | B4: Number of parameters chosen | C4: Effect | D4: Air Quality | F4: Water Quality | G4: Soil Quality | H4: Other pollutants | I4: Biodiversity and ecosystem balance
A5: Positive | B5: NA | C5: + | D5: SOx (Sulphur oxide) | F5: BOD | G5: Levels of Lead | H5: Reduction in noise levels | I5: Number of threatened species/habitat
A6: Negative | B6: 1 | C6: - | D6: NOx (nitrous oxide) | F6: COD | G6: Mercury | H6: Reduction in waste discharges | I6: Addition of new gene pool
A7: Both | B7: 2 | D7: Ozone | F7: Coliforms | G7: Cadmium | H7: Increased visibility due to low SPM | I7: Types of crops/species
B8: 3 | D8: Lead | F8: Improved wastewater management system | G8: Soil erosion | H8: Other (Please specify) | I8: Other (Please specify)
B9: More than 3 | D9: SPM (Suspended Particulate Matter) | F9: Water Savings | G9: Indirect-wood consumption
D10: CFC's | F10: New safe and reliable water ditribution | G10: Production and use of compost
D11: VOC (volatile organic compound) | F11: Purification/sterilization and cleaning of water | G11: Manure nutrient
D12: Fly Ash | F12: Mercury | G12: Other (Please specify)
D13: Odour | F13: Lead
D14: Dust | F14: Other (Please specify)
D15: PM 10, 25
D16: Number or share (%) of households burning waste
D17: Other (Please specify)
A23: Health condition | B23: Affordability of electricity | C23: Livelihood of poor | D23: Access to sanitation | E23: Food security | F23: Quality of employment | G23: Time | H23: Access to clean energy | I23: Education | J23: Empowerment of women | K23: Access to sustainable technology | L23: Energy security | M23: Capacity building
A24: Decrease in disease prevelance | B24: cost per unit of energy | C24: % of people having access to modern energy and facility (including electricity, water, transport, modern resources etc) | D24: % of people having access to clean drinking water and proper toilets | E24: Number of people having proper nutrition value | F24: number of employees with access to benefits | G24: Time savings due to improved technolgies (biogas, ICS, efficient transport etc) | H24: Improvement of the access, availability and quality (coverage and reliability) | I24: Number of people graduating per year | J24: Number of women employed | K24: Access to new transport system | L24: imported fuels | M24: Number and type of knowledge assets produced
A25: Decrease in accidents | B25: share of household income spent on fuel and electricity | C25: Number of people living below poverty line | D25: Other (Please specify) | E25: Decreased number of PEM cases | F25: per capita or household income | G25: Time availability due to projects | H25: Share of people having access to sustainable electricity | I25: Disemmination of information | J25: Number of women in leadership positions | K25: Innovation of new equipment and process | L25: share of imported oil (attributed to sector)
A26: Health detection and surveillance | C26: Re-settlement plan (in case of any displacement is required for project activity) | E26: Number of new crops grown | F26: safe worker environment (proportion of laborers with access to safety equipment) | G26: Other (Please specify) | H26: Heating/cooling services | I26: Research and increased awareness | J26: Number of women receiving vocational training/education | K26: Number of new technologies added | L26: share of total energy supply from renewables
A27: DALY's averted | C27: Other (Please specify) | E27: Export/import mapping | F27: skill level (number of training sessions) | H27: Number of RE plants | I27: Construction of school | J27: Number of women in entrepreneurial roles | K27: Access to waste management services
A28: Life years gained | E28: Other (Please specify) | H28: Elelctricity consumption per capita | I28: Number of children enrolling for primary education | J28: Other (Please specify) | K28: Number of training conducted
A29: Number of hospitals/health care facilities | H29: Other (Please specify) | I29: Running of education programmes | K29: Other (Please specify)
A30: Reduction of health damaging air pollutants and indoor smoke | I30: Site visits and tours
A31: Avoided gas explosions or fire burns | I31: Vocational trainings conducted
A32: Children immunized against deadly diseases | I32: Other (Please specify)
A33: Maternal mortality rate
A34: Other (Please specify)
A37: Equality | B37: Income generation | C37: Asset | D37: Job creation | F37: Measurement Unit
A38: Number of people having access to jobs (women and men) | B38: Fuel Savings per capita | C38: Investment into new capacities | D38: Per capita income | F38: Number | G38: Direct
A39: Training sessions | B39: Reduction in public expenditure by country | C39: Establishment and maintenance of infrastructure | D39: Number of jobs ( men and women; permanent Vs temporary) | F39: % | G39: Indirect
A40: Working conditions (good or bad) | B40: Export Import Mapping | C40: Enhancing productivity | D40: Migration for jobs | F40: Specific unit
A41: Working hours for Men Vs Women | B41: Reduction in use of foreign exchange | C41: Reduction of production costs | D41: Other (Please specify) | F41: Other (Please specify)
A42: No Child labour involved | B42: Reduction in import of fossil fuels | C42: Setting an example for other industries
A43: Other (Please specify) | B43: Per capita income generation | C43: Creation of business opportunities
B44: Other (Please specify) | C44: Other (Please specify)
